fUST/lending_fUST_20250916
["ID","MTS","AMOUNT","RATE_DAILY","PERIOD"]
[385722684,1757991042084,-482.61081769,0.00021983,3]
[385722685,1757991042093,-465.67267672,0.00021983,3]
[385722686,1757991042103,-466.61298318,0.00021983,3]
[385722687,1757991042112,-471.28859209,0.00021983,3]
[385722688,1757991042121,-490.52703112,0.00021983,3]
[385722689,1757991042130,-469.6489429,0.00021983,3]
[385722690,1757991042139,-461.7460389,0.00021983,3]
[385722691,1757991042152,-463.9029876,0.00021983,3]
[385722692,1757991042160,-462.402542,0.00021983,3]
[385722693,1757991042169,-465.17336725,0.00021983,3]
[385722694,1757991042179,-480.0,0.00021983,3]
[385722695,1757991042188,-160.0,0.00021983,3]
[385722696,1757991042278,-480.0,0.00021983,3]
[385722697,1757991042287,-480.0,0.00021984,3]
[385722698,1757991042297,-480.0,0.00021984,3]
[385722699,1757991042307,-480.0,0.00021984,3]
[385722700,1757991042315,-500.0,0.00021984,3]
[385722701,1757991042325,-500.0,0.00021984,3]
[385722702,1757991042334,-500.0,0.00021984,3]
[385722703,1757991042345,-461.76055794,0.00021984,3]
[385722704,1757991042354,-480.0,0.00021984,3]
[385722705,1757991042364,-480.0,0.00021984,3]
[385722706,1757991042374,-483.3503301,0.00021984,3]
[385722707,1757991042383,-464.54992872,0.00021984,3]
[385722708,1757991042393,-480.0,0.00021984,3]
[385722709,1757991042404,-484.19166232,0.00021984,3]
[385722710,1757991042426,-480.0,0.00021984,3]
[385722711,1757991042437,-480.0,0.00021984,3]
[385722712,1757991042447,-480.0,0.00021984,3]
[385722713,1757991042456,-480.0,0.00021984,3]
[385722714,1757991042465,-480.0,0.00021984,3]
[385722715,1757991042475,-486.24179082,0.00021984,3]
[385722716,1757991042484,-510.28193074,0.00021984,3]
[385722717,1757991042493,-481.34969073,0.00021984,3]
[385722718,1757991042502,-480.0,0.00021984,3]
[385722719,1757991042511,-483.7475594,0.00021984,3]
[385722720,1757991042519,-482.84894603,0.00021984,3]
[385722721,1757991042528,-482.2938915,0.00021984,3]
[385722722,1757991042540,-482.22440863,0.00021984,3]
[385722723,1757991042549,-482.63368206,0.00021984,3]
[385722724,1757991042558,-512.02354938,0.00021984,3]
[385722725,1757991042568,-480.0,0.00021984,3]
[385722726,1757991042577,-480.0,0.00021984,3]
[385722727,1757991042586,-480.0,0.00021984,3]
[385722728,1757991042595,-614.33,0.00021984,3]
[385722729,1757991042604,-500.0,0.00021984,3]
[385722730,1757991042614,-480.0,0.00021984,3]
[385722731,1757991042623,-500.0,0.00021984,3]
[385722732,1757991042632,-500.0,0.00021984,3]
[385722733,1757991042644,-428.53839059,0.00021984,3]
[385722734,1757991042653,-193.11695866,0.00021984,3]
[385722735,1757991042663,-480.0,0.00021984,3]
[385722736,1757991042672,-485.75558223,0.00021984,3]
[385722737,1757991042681,-487.45238174,0.00021984,3]
[385722738,1757991042690,-480.0,0.00021984,3]
[385722739,1757991042699,-466.35324129,0.00021984,3]
[385722740,1757991042708,-500.0,0.00021984,3]
[385722741,1757991042717,-480.0,0.00021984,3]
[385722742,1757991042727,-500.0,0.00021984,3]
[385722743,1757991042736,-500.0,0.00021984,3]
[385722744,1757991042745,-482.35042784,0.00021984,3]
[385722745,1757991042754,-480.0,0.00021984,3]
[385722746,1757991042763,-484.15126909,0.00021984,3]
[385722747,1757991042772,-483.72614278,0.00021984,3]
[385722748,1757991042782,-482.98219597,0.00021984,3]
[385722749,1757991042791,-486.57532228,0.00021984,3]
[385722750,1757991042800,-480.0,0.00021984,3]
[385722751,1757991042809,-385.03105187,0.00021984,3]
[385722752,1757991042820,-439.9465183,0.00021984,3]
[385722753,1757991042828,-480.0,0.00021984,3]
[385722754,1757991042837,-480.0,0.00021984,3]
[385722755,1757991042847,-487.99398473,0.00021984,3]
[385722756,1757991042856,-489.40077961,0.00021984,3]
[385722757,1757991042865,-480.0,0.00021984,3]
[385722758,1757991042874,-480.0,0.00021984,3]
[385722759,1757991042883,-485.4358921,0.00021984,3]
[385722760,1757991042893,-494.87741621,0.00021984,3]
[385722761,1757991042902,-500.0,0.00021984,3]
[385722762,1757991042911,-500.0,0.00021984,3]
[385722763,1757991042921,-500.0,0.00021984,3]
[385722764,1757991042931,-480.0,0.00021984,3]
[385722765,1757991042940,-480.0,0.00021984,3]
[385722766,1757991042949,-314.68369324,0.00021984,3]
[385722767,1757991042959,-155.688121,0.00021984,7]
[385722768,1757991042970,-468.23867986,0.00021984,3]
[385722769,1757991042978,-481.4,0.00021984,3]
[385722770,1757991042989,-151.0,0.00021984,7]
[385722771,1757991042998,-470.89037462,0.00021984,3]
[385722772,1757991043009,-480.0,0.00021984,3]
[385722773,1757991043019,-501.43586876,0.00021984,3]
[385722774,1757991043028,-480.0,0.00021984,3]
[385722775,1757991043038,-468.77117198,0.00021984,3]
[385722776,1757991043048,-169.75627393,0.00021984,3]
[385722777,1757991043057,-467.70068758,0.00021984,3]
[385722778,1757991043067,-584.37024212,0.00021984,3]
[385722779,1757991043076,-480.0,0.00021984,3]
[385722780,1757991043085,-153.442791,0.00021984,7]
[385722781,1757991043095,-151.0,0.00021984,7]
[385722782,1757991043104,-493.50875592,0.00021984,3]
[385722783,1757991043113,-489.02442764,0.00021984,3]
[385722784,1757991043122,-480.0,0.00021984,3]
[385722785,1757991043132,-251.6631,0.00021984,7]
[385722786,1757991043141,-480.0,0.00021984,3]
[385722787,1757991043151,-486.83389113,0.00021984,3]
[385722788,1757991043160,-467.09798883,0.00021984,3]
[385722789,1757991043169,-486.7455634,0.00021984,3]
[385722790,1757991043179,-485.95709016,0.00021984,3]
[385722791,1757991043188,-151.0,0.00021984,7]
[385722792,1757991043197,-503.46878029,0.00021984,3]
[385722793,1757991043207,-151.0,0.00021984,7]
[385722794,1757991043216,-488.05780485,0.00021984,3]
[385722795,1757991043226,-151.0,0.00021984,7]
[385722796,1757991043235,-151.0,0.00021984,7]
[385722797,1757991043245,-498.61244455,0.00021984,3]
[385722798,1757991043255,-1009.19979243,0.00021984,3]
[385722799,1757991043263,-480.0,0.00021984,3]
[385722800,1757991043273,-485.14664405,0.00021984,3]
[385722801,1757991043282,-482.49795421,0.00021984,3]
[385722802,1757991043291,-465.11570822,0.00021984,3]
[385722803,1757991043300,-543.24401079,0.00021984,3]
[385722804,1757991043309,-480.0,0.00021984,3]
[385722805,1757991043319,-468.02304665,0.00021984,3]
[385722806,1757991043328,-480.0,0.00021984,3]
[385722807,1757991043337,-175.017682,0.00021984,7]
[385722808,1757991043347,-175.017682,0.00021984,7]
[385722809,1757991043356,-175.017682,0.00021984,7]
[385722810,1757991043365,-467.45736426,0.00021984,3]
[385722811,1757991043374,-175.017682,0.00021984,7]
[385722812,1757991043384,-151.0,0.00021984,7]
[385722813,1757991043393,-480.0,0.00021984,3]
[385722814,1757991043402,-492.93845048,0.00021984,3]
[385722815,1757991043411,-466.05891538,0.00021984,3]
[385722816,1757991043420,-480.0,0.00021984,3]
[385722817,1757991043430,-480.0,0.00021984,3]
[385722818,1757991043439,-480.0,0.00021984,3]
[385722819,1757991043448,-462.99680815,0.00021984,3]
[385722820,1757991043457,-480.0,0.00021984,3]
[385722821,1757991043467,-480.0,0.00021984,3]
[385722822,1757991043475,-493.3445083,0.00021984,3]
[385722823,1757991043485,-480.0,0.00021984,3]
[385722824,1757991043494,-462.19500077,0.00021984,3]
[385722825,1757991043503,-159.808153,0.00021984,7]
[385722826,1757991043512,-575.14382805,0.00021984,3]
[385722827,1757991043521,-480.0,0.00021984,3]
[385722828,1757991043531,-462.99820776,0.00021984,3]
[385722829,1757991043545,-466.42925234,0.00021984,3]
[385722830,1757991043562,-569.43925677,0.00021984,3]
[385722831,1757991043574,-450.24233419,0.00021984,3]
[385722832,1757991043583,-490.27985733,0.00021984,3]
[385722833,1757991043593,-480.0,0.00021984,3]
[385722834,1757991043602,-490.54059134,0.00021984,3]
[385722835,1757991043611,-490.18470489,0.00021984,3]
[385722836,1757991043621,-537.47889582,0.00021984,3]
[385722837,1757991043630,-467.08533644,0.00021984,3]
[385722838,1757991043639,-461.10083384,0.00021984,3]
[385722839,1757991043648,-460.77305998,0.00021984,3]
[385722840,1757991043657,-480.0,0.00021984,3]
[385722841,1757991043667,-154.197938,0.00021984,7]
[385722842,1757991043676,-154.197938,0.00021984,7]
[385722843,1757991043686,-154.197938,0.00021984,7]
[385722844,1757991043696,-154.197938,0.00021984,7]
[385722845,1757991043707,-485.74591738,0.00021984,3]
[385722846,1757991043717,-463.00077379,0.00021984,3]
[385722847,1757991043727,-151.0,0.00021984,7]
[385722848,1757991043737,-151.0,0.00021984,7]
[385722849,1757991043747,-151.0,0.00021984,7]
[385722850,1757991043757,-487.07935437,0.00021984,3]
[385722851,1757991043766,-442.36512865,0.00021984,3]
[385722852,1757991043775,-487.96307943,0.00021984,3]
[385722853,1757991043784,-151.0,0.00021984,7]
[385722854,1757991043794,-151.0,0.00021984,7]
[385722855,1757991043804,-462.64317986,0.00021984,3]
[385722856,1757991043816,-151.0,0.00021984,7]
[385722857,1757991043825,-480.0,0.00021984,3]
[385722858,1757991043834,-239.501219,0.00021984,7]
[385722859,1757991043843,-239.501219,0.00021984,7]
[385722860,1757991043852,-239.501219,0.00021984,7]
[385722861,1757991043861,-239.501219,0.00021984,7]
[385722862,1757991043870,-487.5404281,0.00021984,3]
[385722864,1757991043880,-482.78133184,0.00021984,3]
[385722865,1757991043888,-480.0,0.00021984,3]
[385722866,1757991043898,-217.771726,0.00021984,7]
[385722867,1757991043908,-180.534982,0.00021984,7]
[385722868,1757991043920,-217.771726,0.00021984,7]
[385722869,1757991043929,-480.0,0.00021984,2]
[385722870,1757991043940,-217.771726,0.00021984,7]
[385722871,1757991043949,-509.10490172,0.00021984,3]
[385722872,1757991043960,-217.771726,0.00021984,7]
[385722873,1757991043969,-151.0,0.00021984,7]
[385722874,1757991043979,-487.62720452,0.00021984,3]
[385722875,1757991043987,-204.700538,0.00021984,7]
[385722876,1757991043997,-480.0,0.00021984,3]
[385722877,1757991044005,-160.0,0.00021984,7]
[385722878,1757991044014,-160.0,0.00021984,3]
[385722879,1757991044023,-151.0,0.00021984,7]
[385722880,1757991044032,-231.53961664,0.00021984,3]
[385722881,1757991044041,-151.0,0.00021984,7]
[385722882,1757991044050,-151.0,0.00021984,7]
[385722883,1757991044059,-151.0,0.00021984,7]
[385722884,1757991044069,-151.876733,0.00021984,7]
[385722885,1757991044078,-155.361001,0.00021984,7]
[385722886,1757991044086,-151.0,0.00021984,7]
[385722887,1757991044095,-189.895693,0.00021984,7]
[385722888,1757991044104,-156.148166,0.00021984,7]
[385722889,1757991044113,-151.0,0.00021984,7]
[385722890,1757991044123,-475.4143017,0.00021984,3]
[385722891,1757991044132,-151.0,0.00021984,7]
[385722892,1757991044142,-151.0,0.00021984,7]
[385722893,1757991044151,-468.10708715,0.00021984,3]
[385722894,1757991044161,-175.768189,0.00021984,7]
[385722895,1757991044171,-480.0,0.00021984,3]
[385722896,1757991044180,-501.09622338,0.00021984,3]
[385722897,1757991044189,-469.61158345,0.00021984,3]
[385722898,1757991044198,-480.0,0.00021984,3]
[385722899,1757991044207,-469.28988979,0.00021984,3]
[385722900,1757991044216,-597.9102473,0.00021984,3]
[385722901,1757991044225,-480.0,0.00021984,3]
[385722902,1757991044233,-151.0,0.00021984,7]
[385722903,1757991044243,-480.0,0.00021984,3]
[385722904,1757991044251,-151.0,0.00021984,7]
[385722905,1757991044261,-748.681608,0.00021984,7]
[385722906,1757991044270,-748.681608,0.00021984,7]
[385722907,1757991044279,-748.681608,0.00021984,7]
[385722908,1757991044288,-503.04657393,0.00021985,3]
[385722909,1757991044297,-500.0,0.00021985,3]
[385722910,1757991044306,-500.0,0.00021985,3]
[385722911,1757991044316,-179.59981203,0.00021986,3]
[385722912,1757991044326,-482.89895134,0.00021986,3]
[385722913,1757991044335,-480.0,0.00021986,3]
[385722914,1757991044344,-480.0,0.00021986,3]
[385722915,1757991044430,-480.0,0.00021986,3]
[385722916,1757991044440,-500.0,0.00021986,3]
[385722917,1757991044450,-500.0,0.00021986,3]
[385722918,1757991044461,-155.420887,0.00021986,7]
[385722919,1757991044470,-151.0,0.00021986,7]
[385722920,1757991044479,-158.530528,0.00021986,7]
[385722921,1757991044488,-151.0,0.00021986,7]
[385722922,1757991044497,-491.68860742,0.00021986,3]
[385722923,1757991044507,-151.0,0.00021986,7]
[385722924,1757991044515,-500.0,0.00021986,3]
[385722925,1757991044524,-288.60303952,0.00021986,3]
[385722926,1757991044534,-466.31683431,0.00021986,3]
[385722927,1757991044547,-468.97165775,0.00021986,3]
[385722928,1757991044557,-153.28145439,0.00021986,3]
[385722929,1757991044568,-463.0992326,0.00021986,3]
[385722930,1757991044578,-465.28226658,0.00021986,3]
[385722931,1757991044587,-480.0,0.00021986,3]
[385722932,1757991044598,-462.25045267,0.00021986,3]
[385722933,1757991044607,-480.0,0.00021986,3]
[385722934,1757991044617,-500.0,0.00021987,3]
[385722935,1757991044627,-500.0,0.00021987,3]
[385722936,1757991044636,-522.86105062,0.00021987,3]
[385722937,1757991044645,-486.40794731,0.00021988,3]
[385722938,1757991044654,-480.0,0.00021988,3]
[385722939,1757991044663,-154.738351,0.00021988,7]
[385722940,1757991044672,-156.052,0.00021989,2]
[385722941,1757991044682,-812.13,0.00022,7]
[385722942,1757991044691,-315.0,0.0002206,2]
[385722943,1757991044701,-1500.0,0.00022068,2]
[385722944,1757991044710,-1500.0,0.00022068,2]
[385722945,1757991044720,-515.88487927,0.00022068,2]
[385722946,1757991044729,-1500.0,0.00022068,2]
[385722947,1757991044739,-1500.0,0.00022068,2]
[385722948,1757991044748,-1500.0,0.00022068,2]
[385722949,1757991044757,-500.0,0.00022084,2]
[385722950,1757991044766,-168.89611725,0.00022085,2]
[385722951,1757991044775,-182.28776745,0.00022085,2]
[385722952,1757991044784,-468.24274041,0.00022191,3]
[385722953,1757991044793,-468.15418675,0.00022191,3]
[385722954,1757991044802,-480.0,0.00022191,3]
[385722955,1757991044811,-480.0,0.00022191,3]
[385722956,1757991044821,-480.0,0.00022191,3]
[385722957,1757991044830,-468.24552515,0.00022191,3]
[385722958,1757991044839,-480.0,0.00022191,3]
[385722959,1757991044848,-522.27112578,0.00022191,3]
[385722960,1757991044857,-480.0,0.00022191,3]
[385722961,1757991044866,-480.0,0.00022191,3]
[385722962,1757991044875,-480.0,0.00022191,3]
[385722963,1757991044884,-536.21158563,0.00022191,3]
[385722964,1757991044894,-480.0,0.00022191,3]
[385722965,1757991044903,-480.0,0.00022191,3]
[385722966,1757991044912,-540.84262148,0.00022191,3]
[385722967,1757991044921,-480.0,0.00022191,3]
[385722968,1757991044930,-473.32096204,0.00022191,3]
[385722969,1757991044939,-480.0,0.00022191,3]
[385722970,1757991044948,-480.0,0.00022191,3]
[385722971,1757991044957,-345.27893656,0.00022191,3]
[385722972,1757991044966,-480.0,0.00022191,3]
[385722973,1757991044976,-1371.98,0.00022191,3]
[385722974,1757991044985,-480.0,0.00022191,3]
[385722975,1757991044994,-480.0,0.00022191,3]
[385722976,1757991045003,-475.81677073,0.00022191,3]
[385722977,1757991045012,-480.0,0.00022191,3]
[385722978,1757991045021,-480.0,0.00022191,3]
[385722979,1757991045030,-480.0,0.00022191,3]
[385722980,1757991045039,-303.33122266,0.00022191,3]
[385722981,1757991045049,-480.0,0.00022191,3]
[385722982,1757991045058,-737.98,0.00022191,3]
[385722983,1757991045067,-480.0,0.00022191,3]
[385722984,1757991045076,-480.0,0.00022191,3]
[385722985,1757991045085,-480.0,0.00022191,3]
[385722986,1757991045094,-480.0,0.00022191,3]
[385722987,1757991045103,-473.38984693,0.00022191,3]
[385722988,1757991045112,-480.0,0.00022191,3]
[385722989,1757991045121,-427.5135894,0.00022191,3]
[385722990,1757991045130,-480.0,0.00022191,3]
[385722991,1757991045139,-650.34,0.00022191,3]
[385722992,1757991045148,-480.0,0.00022191,3]
[385722993,1757991045157,-561.08,0.00022191,3]
[385722994,1757991045166,-480.0,0.00022191,3]
[385722995,1757991045175,-480.0,0.00022191,3]
[385722996,1757991045184,-480.0,0.00022191,3]
[385722997,1757991045192,-316.42801234,0.00022191,3]
[385722998,1757991045203,-480.0,0.00022191,3]
[385722999,1757991045212,-470.78824991,0.00022191,3]
[385723000,1757991045221,-480.0,0.00022191,3]
[385723001,1757991045230,-467.79648607,0.00022191,3]
[385723002,1757991045239,-480.0,0.00022191,3]
[385723003,1757991045248,-480.0,0.00022191,3]
[385723004,1757991045257,-480.0,0.00022191,3]
[385723005,1757991045267,-480.0,0.00022191,3]
[385723006,1757991045276,-466.57616418,0.00022191,3]
[385723007,1757991045285,-480.0,0.00022191,3]
[385723008,1757991045294,-480.0,0.00022191,3]
[385723009,1757991045304,-480.0,0.00022191,3]
[385723010,1757991045314,-480.0,0.00022191,3]
[385723011,1757991045324,-480.0,0.00022191,3]
[385723012,1757991045333,-480.0,0.00022191,3]
[385723013,1757991045342,-480.0,0.00022191,3]
[385723014,1757991045352,-480.0,0.00022191,3]
[385723015,1757991045361,-476.82146224,0.00022191,3]
[385723016,1757991045371,-480.0,0.00022191,3]
[385723017,1757991045380,-480.0,0.00022191,3]
[385723018,1757991045389,-480.0,0.00022191,3]
[385723019,1757991045398,-480.0,0.00022191,3]
[385723020,1757991045407,-480.0,0.00022191,3]
[385723021,1757991045416,-467.76891415,0.00022191,3]
[385723022,1757991045426,-480.0,0.00022191,3]
[385723023,1757991045435,-480.0,0.00022191,3]
[385723024,1757991045444,-480.0,0.00022191,3]
[385723025,1757991045453,-795.64,0.00022191,3]
[385723026,1757991045463,-511.9,0.00022191,3]
[385723027,1757991045472,-480.0,0.00022191,3]
[385723028,1757991045481,-480.0,0.00022191,3]
[385723029,1757991045491,-564.74982413,0.00022191,3]
[385723030,1757991045500,-501.44,0.00022191,3]
[385723031,1757991045509,-480.0,0.00022191,3]
[385723032,1757991045518,-455.08852253,0.00022191,3]
[385723033,1757991045527,-480.0,0.00022191,3]
[385723034,1757991045537,-334.15664772,0.00022191,3]
[385723035,1757991045547,-480.0,0.00022191,3]
[385723036,1757991045557,-480.0,0.00022191,3]
[385723037,1757991045566,-480.0,0.00022191,3]
[385723038,1757991045575,-480.0,0.00022191,3]
[385723039,1757991045584,-2079.07,0.00022191,3]
[385723040,1757991045595,-480.0,0.00022191,3]
[385723041,1757991045604,-480.0,0.00022191,3]
[385723042,1757991045614,-480.0,0.00022191,3]
[385723043,1757991045623,-480.0,0.00022191,3]
[385723044,1757991045632,-357.3174706,0.00022191,3]
[385723045,1757991045641,-480.0,0.00022191,3]
[385723046,1757991045650,-151.0,0.000222,9]
[385723047,1757991045659,-1079.74619929,0.00022226,2]
[385723048,1757991045669,-472.13290087,0.00022257,3]
[385723049,1757991045677,-474.39629858,0.00022257,3]
[385723050,1757991045686,-469.26261065,0.00022257,3]
[385723051,1757991045695,-480.0,0.00022257,3]
[385723052,1757991045704,-467.52998389,0.00022257,3]
[385723053,1757991045713,-480.0,0.00022258,3]
[385723054,1757991045722,-466.68839696,0.00022258,3]
[385723055,1757991045732,-470.7558479,0.00022258,3]
[385723056,1757991045741,-472.11650115,0.00022258,3]
[385723057,1757991045750,-487.83814807,0.00022258,3]
[385723058,1757991045759,-472.77516837,0.00022258,3]
[385723059,1757991045768,-480.0,0.00022258,3]
[385723060,1757991045777,-480.0,0.00022258,3]
[385723061,1757991045787,-472.75482603,0.00022258,3]
[385723062,1757991045796,-465.81639686,0.00022258,3]
[385723063,1757991045805,-480.0,0.00022258,3]
[385723064,1757991045814,-500.0,0.00022258,3]
[385723065,1757991045823,-480.0,0.00022258,3]
[385723066,1757991045833,-217.35543278,0.00022258,3]
[385723067,1757991045842,-150.84722451,0.00022258,3]
[385723068,1757991045851,-425.60841268,0.00022258,3]
[385723069,1757991045860,-480.0,0.00022258,3]
[385723070,1757991045869,-480.0,0.00022258,3]
[385723071,1757991045878,-480.0,0.00022258,3]
[385723072,1757991045888,-480.0,0.00022258,3]
[385723073,1757991045897,-485.70894745,0.00022258,3]
[385723074,1757991045906,-479.65918422,0.00022258,3]
[385723075,1757991045915,-207.73101848,0.00022258,3]
[385723076,1757991045925,-480.0,0.00022258,3]
[385723077,1757991045934,-480.0,0.00022258,3]
[385723078,1757991045943,-481.37075762,0.00022258,3]
[385723079,1757991045952,-438.8330069,0.00022258,3]
[385723080,1757991045961,-285.87527844,0.00022258,3]
[385723081,1757991045970,-502.19958278,0.00022258,3]
[385723082,1757991045980,-599.49096495,0.00022258,3]
[385723083,1757991045989,-480.0,0.00022258,3]
[385723084,1757991045998,-480.0,0.00022258,3]
[385723085,1757991046007,-480.0,0.00022258,3]
[385723086,1757991046016,-441.81047894,0.00022258,3]
[385723087,1757991046025,-480.0,0.00022258,3]
[385723088,1757991046034,-248.7337536,0.00022258,3]
[385723089,1757991046043,-154.197938,0.00022258,7]
[385723090,1757991046053,-154.197938,0.00022258,7]
[385723091,1757991046063,-154.197938,0.00022258,7]
[385723092,1757991046073,-154.197938,0.00022258,7]
[385723093,1757991046082,-151.0,0.00022258,7]
[385723094,1757991046091,-151.0,0.00022258,7]
[385723095,1757991046101,-151.0,0.00022258,7]
[385723096,1757991046110,-151.0,0.00022258,7]
[385723097,1757991046120,-151.0,0.00022258,7]
[385723098,1757991046129,-151.0,0.00022258,7]
[385723099,1757991046138,-260.57225346,0.00022258,3]
[385723100,1757991046148,-239.501219,0.00022258,7]
[385723101,1757991046158,-239.501219,0.00022258,7]
[385723102,1757991046167,-239.501219,0.00022258,7]
[385723103,1757991046186,-239.501219,0.00022258,7]
[385723104,1757991046199,-480.0,0.00022258,3]
[385723105,1757991046215,-217.771726,0.00022258,7]
[385723106,1757991046224,-217.771726,0.00022258,7]
[385723107,1757991046233,-505.44926189,0.00022258,2]
[385723108,1757991046243,-217.771726,0.00022258,7]
[385723109,1757991046252,-217.771726,0.00022258,7]
[385723110,1757991046262,-480.0,0.00022258,3]
[385723111,1757991046271,-151.0,0.00022258,7]
[385723112,1757991046280,-151.0,0.00022258,7]
[385723113,1757991046289,-152.728998,0.00022258,7]
[385723114,1757991046298,-228.049257,0.00022258,7]
[385723115,1757991046307,-151.0,0.00022258,7]
[385723116,1757991046393,-151.0,0.00022258,7]
[385723117,1757991046403,-151.0,0.00022258,7]
[385723118,1757991046412,-151.0,0.00022258,7]
[385723119,1757991046421,-480.0,0.00022258,3]
[385723120,1757991046431,-471.87459895,0.00022258,3]
[385723121,1757991046440,-472.93322358,0.00022258,3]
[385723122,1757991046450,-151.0,0.00022258,7]
[385723123,1757991046462,-471.09775329,0.00022258,3]
[385723124,1757991046471,-193.327189,0.00022258,7]
[385723125,1757991046480,-748.681608,0.00022258,7]
[385723126,1757991046490,-748.681608,0.00022258,7]
[385723127,1757991046499,-748.681608,0.00022258,7]
[385723128,1757991046509,-748.681608,0.00022258,7]
[385723129,1757991046518,-473.46584733,0.0002226,3]
[385723130,1757991046528,-468.86698764,0.0002226,3]
[385723131,1757991046540,-563.84058516,0.0002226,3]
[385723132,1757991046549,-521.26218663,0.0002226,3]
[385723133,1757991046558,-480.0,0.0002226,3]
[385723134,1757991046568,-468.05828872,0.00022262,3]
[385723135,1757991046577,-313.69769675,0.00022268,2]
[385723136,1757991046586,-160.0,0.00022286,2]
[385723137,1757991046597,-10851.0821791,0.00022293,2]
[385723138,1757991046607,-687.06404313,0.00022305,2]
[385723139,1757991046618,-300.0,0.00022323,20]
[385723140,1757991046627,-300.0,0.00022323,20]
[385723141,1757991046639,-300.0,0.00022323,20]
[385723142,1757991046650,-300.0,0.00022323,20]
[385723143,1757991046659,-300.0,0.00022323,20]
[385723144,1757991046670,-17082.2948202,0.00022339,2]
[385723145,1757991046681,-2195.965058,0.00022339,2]
[385723146,1757991046692,-47255.702298,0.00022339,2]
[385723147,1757991046703,-151.0,0.00022339,7]
[385723148,1757991046715,-151.0,0.00022339,7]
[385723149,1757991046725,-151.0,0.00022339,7]
[385723150,1757991046735,-151.0,0.00022339,7]
[385723151,1757991046746,-151.0,0.00022339,7]
[385723152,1757991046756,-151.0,0.00022339,7]
[385723153,1757991046767,-175.017682,0.00022339,7]
[385723154,1757991046777,-175.017682,0.00022339,7]
[385723155,1757991046787,-175.017682,0.00022339,7]
[385723156,1757991046799,-175.017682,0.00022339,7]
[385723157,1757991046807,-151.0,0.00022339,7]
[385723158,1757991046817,-500.0,0.00022358,2]
[385723159,1757991046826,-151.0,0.000224,8]
[385723160,1757991046835,-480.0,0.00022465,3]
[385723161,1757991046844,-480.0,0.00022465,3]
[385723162,1757991046854,-480.0,0.00022465,3]
[385723163,1757991046863,-243.69315676,0.00022465,3]
[385723164,1757991046872,-480.0,0.00022465,3]
[385723165,1757991046882,-480.0,0.00022465,3]
[385723166,1757991046891,-229.46,0.00022465,3]
[385723167,1757991046901,-243.29623334,0.00022465,3]
[385723168,1757991046911,-480.0,0.00022465,3]
[385723169,1757991046921,-480.0,0.00022465,3]
[385723170,1757991046930,-480.0,0.00022465,3]
[385723171,1757991046940,-510.07586565,0.00022465,3]
[385723172,1757991046950,-480.0,0.00022465,3]
[385723173,1757991046960,-1371.98,0.00022465,3]
[385723174,1757991046970,-480.0,0.00022465,3]
[385723175,1757991046979,-390.69593061,0.00022465,3]
[385723176,1757991046988,-480.0,0.00022465,3]
[385723177,1757991046997,-480.0,0.00022465,3]
[385723178,1757991047006,-480.0,0.00022465,3]
[385723179,1757991047015,-480.0,0.00022465,3]
[385723180,1757991047024,-737.98,0.00022465,3]
[385723181,1757991047033,-480.0,0.00022465,3]
[385723182,1757991047042,-461.88043554,0.00022465,3]
[385723183,1757991047051,-480.0,0.00022465,3]
[385723184,1757991047061,-474.19263641,0.00022465,3]